bitfinex/quotes_ETHUSD_20260217
["timestamp","ask_amount","ask_price","bid_price","bid_amount"]
[1771303889731,5.02058439,1991.9,1991.4,0.45122138]
[1771303890415,5.02058439,1991.9,1991.5,0.001]
[1771303890620,0.0011,1991.7,1991.5,0.001]
[1771303904355,0.0011,1991.7,1991.6,0.001]
[1771303908149,0.0011,1991.7,1991.5,0.001]
[1771303910359,1.25630911,1991.7,1991.5,0.001]
[1771303911266,1.75466938,1991.7,1991.3,0.001]
[1771303912671,0.0011,1991.7,1991.3,0.001]
[1771303916692,0.0011,1991.7,1991.0,0.001]
[1771303916693,5.89901232,1991.5,1991.0,0.001]
[1771303916965,0.49836027,1991.4,1991.0,0.001]
[1771303917670,1.25546125,1991.3,1991.0,0.001]
[1771303918643,1.25546125,1991.3,1991.1,0.001]
[1771303924379,1.25544314,1991.4,1991.1,0.001]
[1771303924551,1.25544314,1991.4,1991.1,0.48725741]
[1771303925253,1.25538436,1991.5,1991.1,0.48725741]
[1771303925866,0.0011,1991.6,1991.1,0.48725741]
[1771303926083,0.0011,1991.7,1991.3,0.48625741]
[1771303926380,0.0011,1991.8,1991.3,0.48625741]
[1771303926381,0.0011,1991.9,1991.6,0.48625741]
[1771303929478,0.0011,1991.9,1991.7,0.48625741]
[1771303930659,0.0011,1991.8,1991.7,0.48625741]
[1771303931849,0.0011,1991.8,1991.7,1.74146652]
[1771303933294,0.0011,1992.1,1991.8,0.48625741]
[1771303933594,0.0033,1992.1,1991.8,1.25514576]
[1771303933778,0.0011,1992.1,1991.9,0.48625741]
[1771303934273,0.0033,1992.1,1991.9,0.48625741]
[1771303937092,0.0011,1992.3,1992.0,0.48664548]
[1771303937395,0.0011,1992.6,1992.2,0.48664548]
[1771303938783,0.0011,1992.6,1992.4,0.48664548]
[1771303939896,1.23989036,1993.0,1992.4,0.48664548]
[1771303941699,1.71206367,1993.0,1992.2,5.88729753]
[1771303941898,1.71206367,1993.0,1992.3,0.885]
[1771303942103,0.0011,1992.9,1992.4,0.48664548]
[1771303945272,0.0011,1992.9,1992.4,0.42664548]
[1771303949278,0.0011,1992.9,1992.5,0.48664548]
[1771303954915,0.0011,1992.9,1992.5,0.48764548]
[1771303956391,0.0011,1992.9,1992.5,0.001]
[1771303956392,0.47327331,1992.9,1992.5,0.001]
[1771303958520,1.25451625,1992.8,1992.5,0.001]
[1771303959389,0.47217331,1992.7,1992.5,0.001]
[1771303959634,0.47217331,1992.7,1992.2,0.001]
[1771303960631,0.47217331,1992.5,1992.2,0.001]
[1771303961132,1.25464217,1992.6,1992.2,0.001]
[1771303961344,1.72681548,1992.6,1992.2,0.001]
[1771303961703,0.47217331,1992.5,1992.2,0.001]
[1771303962527,1.72706739,1992.2,1991.4,0.48664548]
[1771303962728,0.47217331,1992.1,1991.5,0.905]
[1771303962916,0.47217331,1992.1,1991.5,1.39164548]
[1771303963919,0.47217331,1992.1,1991.3,1.7421059]
[1771303964119,0.47217331,1992.1,1991.3,1.74210614]
[1771303964314,0.47217331,1992.1,1991.4,0.46366078]
[1771303964630,1.25502008,1992.0,1991.4,0.46366078]
[1771303967727,1.25502008,1992.0,1991.6,0.001]
[1771303968245,0.47830982,1991.9,1991.6,0.001]
[1771303970333,0.46902375,1991.7,1991.3,0.001]
[1771303971714,1.25514609,1991.8,1991.3,0.001]
[1771303971943,1.25512762,1991.9,1991.3,0.47425809]
[1771303972139,1.25512762,1991.9,1991.3,1.72971087]
[1771303972722,1.25512762,1991.9,1991.3,0.47425809]
[1771303974745,1.72415137,1991.9,1991.3,0.47425809]
[1771303974953,0.46902375,1991.8,1991.3,0.001]
[1771303975447,0.46902375,1991.7,1991.3,0.001]
[1771303977050,1.25527214,1991.6,1991.3,0.001]
[1771303980323,1.25527214,1991.6,1991.4,0.001]
[1771303980535,1.25637214,1991.6,1991.4,0.001]
[1771303981818,0.0011,1991.6,1991.4,0.001]
[1771303982017,0.0011,1991.6,1991.4,0.47425809]
[1771303982664,0.0011,1991.6,1991.4,0.001]
[1771303989430,1.25637214,1991.6,1991.2,0.47425809]
[1771303991438,0.0011,1991.6,1991.2,0.47425809]
[1771303993154,0.0011,1991.6,1991.3,0.001]
[1771303993390,0.0011,1991.5,1991.3,0.001]
[1771303994455,0.0011,1991.5,1991.3,0.46853603]
[1771303996061,0.0011,1991.5,1991.3,0.001]
[1771303998261,0.0011,1991.5,1991.3,0.46853603]
[1771304003658,0.0011,1991.7,1991.3,0.46853603]
[1771304003659,0.0011,1991.7,1991.4,0.46753603]
[1771304003972,0.0011,1991.7,1991.5,0.46753603]
[1771304010053,0.49112214,1991.7,1991.4,0.001]
[1771304011972,1.25527214,1991.6,1991.4,0.001]
[1771304014894,1.74529428,1991.6,1991.4,0.001]
[1771304015190,1.25633192,1991.7,1991.4,0.001]
[1771304015402,0.0011,1991.7,1991.4,0.001]
[1771304018092,0.0011,1991.6,1991.4,0.001]
[1771304023812,0.49112214,1991.6,1991.4,0.001]
[1771304027170,1.74639667,1991.6,1991.4,0.001]
[1771304027587,0.0011,1991.8,1991.5,0.46461233]
[1771304028188,0.0011,1991.8,1991.5,0.952048]
[1771304028404,0.0011,1991.8,1991.7,0.46461233]
[1771304029106,0.882,1992.3,1991.8,0.46461233]
[1771304029700,0.4746059,1992.2,1991.6,0.46461233]
[1771304029902,0.0011,1991.6,1991.5,1.25632622]
[1771304030799,0.0011,1991.6,1991.5,1.72164328]
[1771304032193,0.0011,1991.6,1991.5,0.46631706]
[1771304032581,0.0011,1991.6,1991.5,1.72165223]
[1771304033621,0.0011,1991.6,1991.5,0.001]
[1771304042427,0.0011,1991.6,1991.5,0.46631706]
[1771304042615,0.0011,1991.6,1991.5,0.001]
[1771304050738,0.0011,1991.6,1991.3,0.001]
[1771304050909,0.4729182,1991.6,1991.3,0.001]
[1771304051108,0.0011,1991.6,1991.3,0.001]
[1771304054136,0.0011,1991.6,1991.3,0.46631706]
[1771304054442,0.0011,1991.6,1991.4,1.25639821]
[1771304054822,0.0011,1991.6,1991.4,0.48247454]
[1771304056933,0.0011,1991.6,1991.4,1.73784062]
[1771304057232,0.0011,1991.6,1991.5,0.48147454]
[1771304057721,0.0011,1991.8,1991.5,0.48147454]
[1771304059253,0.0011,1991.8,1991.6,1.25527214]
[1771304061437,0.0011,1991.8,1991.6,1.73674668]
[1771304061612,0.0011,1991.8,1991.7,0.48147454]
[1771304062013,0.0011,1991.8,1991.6,1.25527214]
[1771304062542,0.0011,1991.8,1991.6,1.73674668]
[1771304066346,0.0011,1991.8,1991.7,0.001]
[1771304072134,0.0011,1992.0,1991.7,0.001]
[1771304072340,0.48306761,1991.6,1991.4,0.001]
[1771304075344,1.25520911,1991.7,1991.4,0.001]
[1771304075527,5.02075349,1991.8,1991.4,0.001]
[1771304075528,0.871,1991.8,1991.4,0.001]
[1771304077757,2.12619445,1991.8,1991.4,0.001]
[1771304078428,2.12619445,1991.8,1991.5,0.001]
[1771304078824,0.0011,1991.7,1991.5,0.001]
[1771304086859,0.46152507,1991.7,1991.5,0.001]
[1771304087732,1.71679553,1991.7,1991.4,0.001]
[1771304089231,1.25637046,1991.7,1991.4,0.001]
[1771304090556,1.25637046,1991.7,1991.5,0.001]
[1771304093963,1.71944298,1991.7,1991.5,0.001]
[1771304094127,1.71944298,1991.7,1991.4,0.001]
[1771304094855,0.46307252,1991.6,1991.2,0.001]
[1771304095059,5.4013534,1991.5,1991.2,0.001]
[1771304095355,1.25637046,1991.7,1991.2,0.001]
[1771304095356,7.12079638,1991.7,1991.2,0.001]
[1771304096131,0.882,1991.6,1991.2,0.001]
[1771304096836,1.25533517,1991.5,1991.2,0.001]
[1771304097445,1.71840769,1991.5,1991.2,0.001]
[1771304097938,7.11976109,1991.5,1991.1,0.001]
[1771304098337,7.11976109,1991.5,1991.0,0.001]
[1771304098534,0.46307252,1991.4,1991.0,0.001]
[1771304099438,1.71851383,1991.4,1991.0,0.001]
[1771304099736,1.25544131,1991.4,1991.0,0.001]
[1771304102266,5.86442592,1991.3,1990.7,0.001]
[1771304102657,6.74942592,1991.3,1990.7,0.4600622]
[1771304102835,6.74942592,1991.3,1990.8,0.001]
[1771304104476,1.2555243,1991.2,1990.8,0.001]
[1771304107667,5.4013534,1991.1,1990.5,0.4600622]
[1771304107841,5.4013534,1990.9,1990.5,0.4600622]
[1771304110267,6.65708296,1990.9,1990.5,0.4600622]
[1771304111153,1.25556093,1991.2,1990.6,0.4590622]
[1771304111355,7.5458627,1991.3,1990.6,0.4590622]
[1771304113875,7.5458627,1991.3,1990.7,0.4590622]
[1771304114586,7.5458627,1991.3,1990.7,0.4600622]
[1771304114884,0.0011,1991.2,1990.7,0.4600622]
[1771304117477,0.0011,1991.2,1990.8,0.49499696]
[1771304121271,5.4013534,1991.1,1990.7,0.001]
[1771304121474,5.4013534,1991.1,1990.7,0.49599696]
[1771304123571,6.656972,1991.1,1990.7,0.49599696]
[1771304123876,6.656972,1991.1,1990.7,0.001]
[1771304126981,6.656972,1991.1,1990.8,0.001]
[1771304127180,6.658072,1991.1,1990.8,0.001]
[1771304127381,7.15731484,1991.1,1990.7,0.001]
[1771304127557,6.658072,1991.1,1990.7,0.49599696]
[1771304137072,6.658072,1991.1,1990.7,0.001]
[1771304138905,6.658072,1991.1,1990.8,0.001]
[1771304139078,6.658072,1991.1,1990.7,0.001]
[1771304142710,6.658072,1991.1,1990.5,0.001]
[1771304142711,5.90059624,1990.9,1990.5,0.001]
[1771304142912,0.902,1991.0,1989.8,0.905]
[1771304142913,5.90059624,1990.7,1990.0,0.49499696]
[1771304143206,5.4013534,1990.5,1990.0,0.49499696]
[1771304143707,6.80259624,1990.7,1990.0,0.49499696]
[1771304143909,6.3033534,1990.7,1990.0,0.49499696]
[1771304144589,6.3033534,1990.7,1990.2,0.49309296]
[1771304145589,7.55920648,1990.7,1990.2,0.49309296]
[1771304145910,2.15785308,1990.7,1990.2,0.49309296]
[1771304147419,0.902,1990.7,1990.3,0.49309296]
[1771304149509,2.15784223,1990.7,1990.3,0.49309296]
[1771304150023,0.902,1990.7,1990.3,0.49309296]
[1771304151290,0.902,1990.7,1990.3,0.49409296]
[1771304151501,2.15785585,1990.7,1990.3,0.49409296]
[1771304151809,0.47091028,1990.6,1990.3,0.001]
[1771304152008,0.47091028,1990.6,1990.2,0.001]
[1771304152009,5.40702829,1990.6,1990.2,0.001]
[1771304152594,5.87793857,1990.6,1990.0,0.50039379]
[1771304153222,1.25596583,1990.5,1990.0,0.50039379]
[1771304154108,5.40702829,1990.4,1990.0,0.001]
[1771304155594,6.66305763,1990.4,1990.0,0.001]
[1771304156416,7.13396791,1990.4,1990.0,0.001]
[1771304156620,7.57005763,1990.4,1990.0,0.001]
[1771304157001,8.04096791,1990.4,1989.7,0.49939379]
[1771304157222,5.87793857,1990.2,1989.6,0.49939379]
[1771304157792,1.25621828,1990.1,1989.6,0.49939379]
[1771304157993,5.40702829,1990.0,1989.6,0.49939379]
[1771304160324,5.40702829,1990.0,1989.5,2.13358737]
[1771304160325,6.66331848,1990.0,1989.5,0.49939379]
[1771304160515,6.66331848,1990.0,1989.3,1.40439379]
[1771304160718,6.66331848,1990.0,1989.4,0.49939379]
[1771304160921,0.908,1990.1,1989.4,0.49939379]
[1771304162749,6.6632099,1990.2,1989.4,0.49939379]
[1771304162750,6.6632099,1990.2,1989.6,0.49939379]
[1771304162925,7.5722099,1990.2,1989.6,0.49939379]
[1771304165061,0.909,1990.2,1989.7,0.49939379]
[1771304165263,2.16611557,1990.3,1989.7,0.49939379]
[1771304165431,0.91,1990.3,1989.7,0.49939379]
[1771304165743,2.16609885,1990.3,1989.7,0.49939379]
[1771304166644,0.91,1990.3,1989.7,0.49939379]
[1771304167138,0.91,1990.3,1989.9,0.49939379]
[1771304167450,2.16611498,1990.3,1989.9,0.49939379]
[1771304167958,0.91,1990.3,1989.9,0.49939379]
[1771304168343,2.16609267,1990.3,1989.9,0.49939379]
[1771304169362,2.16609267,1990.3,1989.7,0.49939379]
[1771304171633,0.91,1990.3,1989.8,1.25640767]
[1771304171835,2.16609332,1990.3,1989.8,0.49939379]
[1771304172023,0.91,1990.3,1989.8,0.49939379]
[1771304173054,2.16609245,1990.3,1989.8,0.49939379]
[1771304173218,2.16609245,1990.3,1989.7,1.75581463]
[1771304173423,1.25609316,1990.3,1989.8,0.49939379]
[1771304173747,2.16909316,1990.3,1989.8,0.49939379]
[1771304175153,0.913,1990.3,1989.9,0.48659136]
[1771304175359,2.16909445,1990.3,1989.9,0.48659136]
[1771304178052,0.0011,1990.2,1989.9,0.48659136]
[1771304179530,0.0011,1990.2,1989.9,1.74293338]
[1771304179850,0.0011,1990.2,1989.9,1.74290804]
[1771304180052,0.0011,1990.2,1989.9,0.48659136]
[1771304180252,0.0011,1990.2,1989.9,1.74292766]
[1771304180570,0.0011,1990.2,1989.9,0.48659136]
[1771304183762,0.0011,1990.2,1990.0,0.48659136]
[1771304185462,0.0011,1990.2,1989.8,1.74396371]
[1771304186073,0.0011,1990.2,1989.8,1.25737235]
[1771304186244,0.0011,1990.2,1989.8,1.74396371]
[1771304191866,0.0011,1990.2,1989.9,0.48659136]
[1771304192571,0.0011,1990.2,1989.9,0.48759136]
[1771304194066,0.0011,1990.2,1990.0,1.2562814]
[1771304194944,0.0011,1990.2,1990.0,1.74287276]
[1771304196953,0.0011,1990.2,1990.1,0.48659136]
[1771304197762,0.0011,1990.2,1989.9,0.48759136]
[1771304198946,0.0011,1990.2,1990.1,0.48659136]
[1771304201583,0.0011,1990.5,1990.1,0.48659136]
[1771304201762,0.0011,1990.7,1990.2,0.48659136]
[1771304202464,0.0011,1990.7,1990.3,0.48659136]
[1771304203657,0.0011,1990.7,1990.4,1.74262029]
[1771304204084,0.0011,1990.7,1990.5,0.47322151]
[1771304205778,0.0011,1990.7,1990.5,1.72914897]
[1771304206104,0.0011,1990.9,1990.7,0.47322151]
[1771304206676,0.0011,1990.9,1990.6,1.34922151]
[1771304207656,0.0011,1990.7,1990.6,2.60512425]
[1771304208583,0.0011,1990.9,1990.7,0.47322151]
[1771304208780,0.0011,1991.1,1990.7,0.47322151]
[1771304210370,0.0011,1991.1,1990.7,1.72903923]
[1771304210759,0.0011,1991.1,1990.7,0.47322151]
[1771304212983,0.0011,1991.1,1990.7,1.72906009]
[1771304218192,0.0011,1991.1,1990.2,3.84]
[1771304218193,0.47751422,1990.9,1990.2,3.84]
[1771304218494,0.47751422,1990.7,1990.1,2.13620521]
[1771304220099,0.47751422,1990.7,1990.5,0.001]
[1771304220497,1.73335883,1990.7,1990.5,0.001]
[1771304221098,0.47751422,1990.6,1990.1,0.88]
[1771304222004,7.13741358,1990.8,1990.1,2.62802226]
[1771304222219,0.47751422,1990.9,1990.2,0.49180611]
[1771304222369,1.25680037,1991.0,1990.2,0.49180611]
[1771304222566,0.0011,1991.0,1990.2,0.49180611]
[1771304222805,1.25675089,1991.0,1990.2,0.49180611]
[1771304223103,0.0011,1991.0,1990.2,0.49180611]
[1771304224404,0.0011,1991.0,1990.4,0.49180611]
[1771304225005,0.47861422,1991.0,1990.4,0.49180611]
[1771304225204,0.47861422,1991.0,1990.1,5.09717364]
[1771304225205,0.47751422,1990.9,1990.1,5.09717364]
[1771304225570,0.47751422,1990.7,1990.1,5.09717364]
[1771304226093,0.47751422,1990.7,1990.1,0.001]
[1771304226299,0.47751422,1990.7,1990.1,1.25721771]
[1771304226613,1.73337331,1990.7,1990.1,1.74902382]
[1771304226979,0.47751422,1990.7,1990.1,1.74902382]
[1771304228085,0.47751422,1990.9,1990.2,0.49180611]
[1771304230381,1.73328434,1990.9,1990.2,1.74790626]
[1771304230814,1.73328434,1990.9,1990.3,0.49180611]
[1771304231705,0.0011,1990.6,1990.3,0.49180611]
[1771304232810,0.0011,1990.6,1990.3,1.74789443]
[1771304235111,0.0011,1990.6,1990.3,0.49180611]
[1771304236908,0.0011,1990.6,1990.2,1.25710528]
[1771304236909,0.0011,1990.6,1990.2,0.001]
[1771304243198,0.0011,1990.6,1990.2,0.47934013]
[1771304244841,0.0011,1990.6,1990.3,0.001]
[1771304245140,0.0011,1990.5,1990.3,0.001]
[1771304245922,0.0011,1990.5,1990.3,0.47934013]
[1771304247039,0.0011,1990.5,1990.3,1.73542662]
[1771304247838,0.0011,1990.5,1990.3,0.001]
[1771304253254,0.0011,1990.5,1990.3,0.47934013]
[1771304257476,0.0011,1990.5,1990.3,0.001]
[1771304261079,0.45624526,1990.5,1990.3,0.001]
[1771304263000,1.71221777,1990.5,1990.3,0.001]
[1771304265795,0.45624526,1990.5,1990.3,0.001]
[1771304266086,0.0011,1990.5,1990.3,0.47050877]
[1771304269605,0.0011,1990.5,1990.4,0.001]
[1771304271767,0.0011,1990.5,1990.4,0.47786891]
[1771304272271,0.0011,1990.6,1990.4,0.47786891]
[1771304275037,0.0011,1990.6,1990.4,1.73387661]
[1771304276669,0.0011,1990.6,1990.4,0.001]
[1771304282360,0.0011,1990.6,1990.5,0.001]
[1771304292661,0.0011,1990.6,1990.5,0.47786891]
[1771304293981,0.0011,1990.6,1990.5,0.001]
[1771304298663,0.0011,1990.6,1990.5,0.46507853]
[1771304299664,0.0011,1990.7,1990.5,0.46507853]
[1771304300563,0.0011,1990.7,1990.5,1.72101204]
[1771304300888,0.0011,1990.7,1990.6,0.46407853]
[1771304301183,0.0011,1990.7,1990.5,1.72101204]
[1771304305986,0.0011,1990.7,1990.6,0.001]
[1771304311587,0.0011,1990.8,1990.6,0.46507853]
[1771304313172,0.0011,1990.8,1990.7,1.25583965]
[1771304313692,0.0011,1990.8,1990.6,1.72093463]
[1771304317607,0.0011,1990.7,1990.6,1.72093463]
[1771304317909,0.0011,1991.1,1990.6,1.72093463]
[1771304317910,0.0011,1991.4,1990.9,0.46407853]
[1771304318074,0.0011,1991.4,1991.1,0.46407853]
[1771304319592,0.0011,1991.4,1991.3,0.46407853]
[1771304321102,0.0011,1991.6,1991.3,1.36207853]
[1771304321609,0.0011,1991.6,1991.4,1.25539821]
[1771304323495,0.0011,1991.6,1991.4,1.71947674]
[1771304324506,0.0011,1991.6,1991.4,1.25539821]
[1771304325015,0.0011,1991.7,1991.5,0.4580285]
[1771304325314,0.0011,1991.8,1991.6,0.901]
[1771304325506,0.0011,1991.7,1991.6,0.901]
[1771304325706,0.0011,1991.7,1991.4,2.15739821]
[1771304325887,0.0011,1991.6,1991.4,2.15739821]
[1771304326086,0.0011,1991.7,1991.4,2.15739821]
[1771304327388,0.48600616,1991.9,1991.4,2.15739821]
[1771304327688,0.0011,1991.8,1991.4,2.15739821]
[1771304328718,0.0011,1991.7,1991.4,0.902]
[1771304329021,0.48710616,1991.7,1991.4,2.15739692]
[1771304329318,0.0011,1991.6,1991.4,2.15739692]
[1771304329823,0.0011,1991.5,1991.4,2.15739692]
[1771304330117,0.0011,1991.6,1991.4,2.15739692]
[1771304330592,0.0011,1991.5,1991.4,2.15739692]
[1771304330793,0.0011,1991.6,1991.4,2.15739692]
[1771304331185,0.0011,1991.5,1991.4,2.15739692]
[1771304331396,0.48710616,1991.7,1991.4,2.15739692]
[1771304331397,0.0011,1991.6,1991.4,2.15739692]
[1771304331902,0.0011,1991.5,1991.4,2.15739692]
[1771304332099,0.0011,1991.6,1991.4,2.15739692]
[1771304332525,0.0011,1991.5,1991.4,2.15739692]
[1771304332825,0.0011,1991.6,1991.4,2.15739692]
[1771304333427,0.0011,1991.5,1991.4,2.15739692]
[1771304333629,0.0011,1991.6,1991.4,2.15739692]
[1771304334328,0.0011,1991.5,1991.4,2.15739692]
[1771304334502,0.0011,1991.6,1991.4,2.15739692]
[1771304335831,0.0011,1991.5,1991.4,2.15739692]
[1771304336033,0.0011,1991.6,1991.4,2.62894067]
[1771304336205,0.0022,1991.7,1991.4,2.62894067]
[1771304336405,0.0022,1991.7,1991.5,0.47154375]
[1771304337306,0.0022,1991.7,1991.4,2.15739692]
[1771304337506,0.0022,1991.7,1991.4,2.62894067]
[1771304341213,0.0011,1991.6,1991.4,0.902]
[1771304341717,0.0011,1991.5,1991.4,0.902]
[1771304341915,0.49569424,1991.7,1991.4,0.903]
[1771304342112,0.0011,1991.6,1991.4,0.903]
[1771304342528,0.0011,1991.6,1991.4,2.15838774]
[1771304343421,0.0011,1991.7,1991.4,2.62993149]
[1771304343627,0.0011,1991.6,1991.4,2.62993149]
[1771304343831,0.0022,1991.7,1991.5,0.47154375]
[1771304345236,0.0011,1991.7,1991.5,1.72681763]
[1771304345424,0.0022,1991.7,1991.5,1.72681763]
[1771304345915,0.0022,1991.7,1991.4,2.15833607]
[1771304346644,0.0011,1991.7,1991.4,2.15833607]
[1771304348657,0.0022,1991.7,1991.5,0.47154375]
[1771304350760,0.0022,1991.7,1991.6,1.25527214]
[1771304353875,0.0011,1991.8,1991.6,1.25527214]
[1771304355855,0.0011,1991.8,1991.5,0.001]
[1771304356056,0.0011,1991.8,1991.5,1.25633151]
[1771304357674,0.0011,1991.8,1991.5,1.75516333]
[1771304358076,0.0011,1991.9,1991.6,0.49883182]
[1771304358274,0.0011,1991.9,1991.8,0.49883182]
[1771304360490,0.0011,1992.0,1991.8,1.75397791]
[1771304363949,0.0011,1992.0,1991.8,1.25514609]
[1771304366582,0.0011,1992.0,1991.9,0.001]
[1771304368766,0.0011,1992.1,1991.9,0.001]
[1771304370060,0.47011169,1992.1,1991.9,0.001]
[1771304370368,0.47011169,1992.1,1991.6,0.001]
[1771304370783,0.46901169,1991.9,1991.6,0.001]
[1771304376084,0.46901169,1991.8,1991.4,0.001]
[1771304376274,0.46901169,1991.8,1991.4,0.003]
[1771304376680,0.47011169,1992.1,1991.5,0.50083182]
[1771304376984,1.72507688,1992.1,1991.5,0.50083182]
[1771304378489,1.72507688,1992.1,1991.5,1.75614708]
[1771304378702,0.47011169,1992.1,1991.6,0.50083182]
[1771304378872,1.7250725,1992.1,1991.6,0.50083182]
[1771304379070,1.7250725,1992.1,1991.7,0.002]
[1771304379899,0.0011,1991.9,1991.8,0.002]
[1771304380217,0.0011,1991.9,1991.6,0.002]
[1771304380699,0.0011,1991.9,1991.7,0.002]
[1771304380884,0.0011,1991.9,1991.6,0.002]
[1771304381088,0.0011,1991.9,1991.7,0.002]
[1771304381287,0.0011,1991.9,1991.6,0.002]
[1771304381506,0.0011,1991.9,1991.6,0.50083182]
[1771304381712,0.0011,1991.9,1991.7,0.002]
[1771304382727,0.0011,1991.9,1991.8,0.002]
[1771304382931,0.0011,1991.9,1991.7,0.002]
[1771304383714,0.0011,1991.9,1991.6,0.49883182]
[1771304384018,0.0011,1991.9,1991.7,0.002]
[1771304385836,0.47280604,1991.9,1991.7,0.002]
[1771304386043,0.47280604,1991.9,1991.5,0.001]
[1771304386339,0.47280604,1991.9,1991.6,0.002]
[1771304387328,1.72789671,1991.9,1991.6,0.002]
[1771304387504,1.72789671,1991.9,1991.5,0.001]
[1771304387705,1.72789671,1991.9,1991.6,0.002]
[1771304387927,0.47280604,1991.9,1991.6,0.002]
[1771304389124,0.47280604,1991.9,1991.5,0.001]
[1771304389307,0.47280604,1991.9,1991.6,0.002]
[1771304392023,0.0011,1991.8,1991.6,0.002]
[1771304394238,0.0011,1991.8,1991.7,0.002]
[1771304394439,0.0011,1991.8,1991.6,0.002]
[1771304395542,0.0011,1991.8,1991.5,0.001]
[1771304395841,0.0011,1991.8,1991.6,0.002]
[1771304397629,0.0011,1991.8,1991.7,0.002]
[1771304401536,0.0011,1991.8,1991.7,0.4860809]
[1771304401931,0.0011,1991.8,1991.7,0.4840809]
[1771304402111,0.0011,1991.8,1991.7,0.4860809]
[1771304402759,0.0011,1992.0,1991.8,0.4840809]
[1771304402947,0.0011,1992.0,1991.8,0.4860809]
[1771304403120,0.0011,1992.0,1991.8,0.002]
[1771304404346,0.0011,1991.9,1991.8,0.002]
[1771304405336,0.0011,1991.9,1991.8,0.4860809]
[1771304405542,0.0011,1992.2,1992.0,0.4840809]
[1771304405741,1.75329967,1992.7,1992.1,0.4860809]
[1771304405949,1.75329967,1992.7,1992.1,0.4840809]
[1771304406455,1.75329967,1992.7,1992.1,1.7390138]
[1771304406672,1.75320145,1992.9,1992.2,0.4860809]
[1771304407173,1.75320145,1992.9,1992.3,0.4860809]
[1771304407474,1.75320145,1992.9,1992.3,0.4840809]
[1771304408877,0.49870885,1992.8,1992.4,0.002]
[1771304409043,0.49870885,1992.7,1992.1,0.002]
[1771304409240,0.49870885,1992.7,1992.2,0.002]
[1771304409443,0.49870885,1992.7,1991.9,0.4860809]
[1771304409670,0.49870885,1992.7,1992.0,0.002]
[1771304410165,0.49870885,1992.7,1992.1,0.4860809]
[1771304410370,0.49870885,1992.7,1991.9,0.4860809]
[1771304410567,0.49870885,1992.7,1992.0,0.002]
[1771304410752,1.25464217,1992.6,1992.0,1.74109737]
[1771304410954,1.25464217,1992.6,1992.1,0.002]
[1771304411354,1.25464217,1992.6,1992.2,0.002]
[1771304411556,1.25464217,1992.6,1992.3,0.002]
[1771304411754,1.25464217,1992.6,1992.1,0.002]
[1771304412263,1.25464217,1992.6,1992.2,0.002]
[1771304412465,1.25464217,1992.6,1992.1,0.002]
[1771304412665,1.75335102,1992.6,1992.1,0.002]
[1771304412862,1.75335102,1992.6,1992.2,0.002]
[1771304413065,1.75335102,1992.6,1992.1,0.002]
[1771304413562,1.75335102,1992.6,1992.2,0.002]
[1771304413765,1.75335102,1992.6,1992.1,0.002]
[1771304414159,1.75335102,1992.6,1992.2,0.002]
[1771304414457,1.75335102,1992.6,1992.1,0.002]
[1771304415182,1.75335102,1992.6,1992.2,0.002]
[1771304415390,1.75335102,1992.6,1992.1,0.002]
[1771304415753,1.75335102,1992.6,1992.2,0.002]
[1771304415953,1.75335102,1992.6,1992.1,0.002]
[1771304416482,1.75335102,1992.6,1992.2,0.002]
[1771304416653,1.75335102,1992.6,1992.2,0.001]
[1771304416975,1.75445102,1992.6,1992.3,0.002]
[1771304418250,1.25574217,1992.6,1992.3,0.002]
[1771304418651,1.74883756,1992.6,1992.3,0.002]
[1771304419869,0.49309539,1992.5,1992.2,0.001]
[1771304420057,0.49309539,1992.4,1992.2,0.001]
[1771304420254,2.62083756,1992.6,1992.2,0.003]
[1771304420464,0.49309539,1992.5,1992.2,0.003]
[1771304421264,2.12774217,1992.6,1992.3,0.002]
[1771304421981,2.12774217,1992.6,1992.4,0.002]
[1771304422182,2.12774217,1992.6,1992.3,0.002]
[1771304423681,2.62083756,1992.6,1992.3,0.002]
[1771304424453,2.62383756,1992.6,1992.3,0.002]
[1771304425092,2.62383756,1992.6,1992.4,0.002]
[1771304425384,0.49309539,1992.5,1992.2,0.001]
[1771304426586,1.25476811,1992.4,1992.2,0.001]
[1771304427382,1.25476811,1992.4,1992.0,0.001]
[1771304427689,2.13079124,1992.6,1992.0,0.46166391]
[1771304429662,2.13079124,1992.6,1992.3,0.001]
[1771304429862,0.0011,1992.5,1992.3,0.001]
[1771304441979,0.0011,1992.4,1992.3,0.001]
[1771304443589,0.0011,1992.4,1992.0,0.46166391]
[1771304445298,0.0011,1992.4,1992.0,1.25601401]
[1771304445612,0.0011,1992.4,1992.1,0.47684676]
[1771304452212,0.0011,1992.4,1992.0,0.001]
[1771304452391,0.0011,1992.4,1992.0,0.47564091]
[1771304454092,0.0011,1992.4,1992.2,0.001]
[1771304456939,1.25586811,1992.4,1992.2,0.001]
[1771304460654,1.75532597,1992.4,1992.2,0.001]
[1771304462532,0.49945786,1992.3,1992.0,0.001]
[1771304462861,1.25586811,1992.4,1992.0,0.001]
[1771304463046,1.75532597,1992.4,1992.0,0.001]
[1771304464048,0.49945786,1992.3,1992.0,0.001]
[1771304464231,0.49945786,1992.2,1991.6,0.001]
[1771304465644,0.49945786,1992.0,1991.6,0.001]
[1771304465826,5.39596002,1992.1,1991.6,0.001]
[1771304465827,0.49945786,1991.8,1991.6,0.001]
[1771304466146,1.25520911,1991.7,1991.6,0.001]
[1771304467140,1.75466697,1991.7,1991.5,0.001]
[1771304469145,1.25520911,1991.7,1991.5,0.001]
[1771304469847,1.75464672,1991.8,1991.5,0.001]
[1771304473254,0.49945786,1991.7,1991.5,0.001]
[1771304474334,1.25527214,1991.6,1991.5,0.001]
[1771304474741,1.74296671,1991.6,1991.5,0.001]
[1771304478556,1.74406671,1991.6,1991.5,0.001]
[1771304479128,1.74406671,1991.6,1991.3,0.001]
[1771304479739,0.48769457,1991.5,1991.3,0.001]